fUSD/lending_fUSD_20250620
["ID","MTS","AMOUNT","RATE_DAILY","PERIOD"]
[366790772,1750457437945,-500.0,0.0002413,2]
[366790773,1750457437955,-500.0,0.0002413,2]
[366790774,1750457437966,-28.3379166,0.0002413,2]
[366790775,1750457437979,-471.6620834,0.0002413,2]
[366790776,1750457437989,-500.0,0.0002413,2]
[366790777,1750457438000,-13.0508738,0.0002413,2]
[366790779,1750457438012,-394.09896566,0.0002413,2]
[366790949,1750457439780,-92.85016054,0.0002413,2]
[366790952,1750457439790,-500.0,0.0002413,2]
[366790954,1750457439800,-500.0,0.0002413,2]
[366790956,1750457439811,-500.0,0.0002413,2]
[366790958,1750457439821,-500.0,0.0002413,2]
[366790960,1750457439831,-500.0,0.0002413,2]
[366790962,1750457439841,-500.0,0.0002413,2]
[366790963,1750457439851,-500.0,0.0002413,2]
[366790965,1750457439861,-500.0,0.0002413,2]
[366790968,1750457439871,-500.0,0.0002413,2]
[366790971,1750457439881,-500.0,0.0002413,2]
[366790974,1750457439891,-500.0,0.0002413,2]
[366790976,1750457439902,-500.0,0.0002413,2]
[366790980,1750457439912,-500.0,0.0002413,2]
[366790983,1750457439922,-500.0,0.0002413,2]
[366790986,1750457439932,-500.0,0.0002413,2]
[366790989,1750457439942,-500.0,0.0002413,2]
[366790991,1750457439952,-500.0,0.0002413,2]
[366790994,1750457439962,-500.0,0.0002413,2]
[366790997,1750457439972,-500.0,0.0002413,2]
[366791000,1750457439983,-320.71055151,0.0002413,2]
[366791003,1750457439993,-500.0,0.0002413,2]
[366791006,1750457440003,-500.0,0.0002413,2]
[366791007,1750457440013,-500.0,0.0002413,2]
[366791009,1750457440024,-500.0,0.0002413,2]
[366791011,1750457440034,-500.0,0.0002413,2]
[366791013,1750457440045,-500.0,0.0002413,2]
[366791015,1750457440055,-500.0,0.0002413,2]
[366791017,1750457440066,-500.0,0.0002413,2]
[366791018,1750457440076,-5586.4604055,0.00024131,2]
[366791062,1750457440604,-1626.11604874,0.00024131,2]
[366791064,1750457440616,-9249.72701108,0.00024131,2]
[366791066,1750457440628,-255.67333895,0.00024131,2]
[366791069,1750457440644,-2645.0,0.00024131,2]
[366791436,1750457444880,-158.79672613,0.0002413,2]
[366791437,1750457444890,-5150.60327375,0.00024131,2]
[366791438,1750457444991,-14525.51782191,0.00024131,2]
[366791439,1750457445096,-34.84020575,0.00024131,2]
[366791445,1750457445825,-848.3419997,0.00024131,2]
[366791446,1750457445883,-2877.0667057,0.00024131,2]
[366791449,1750457445942,-16278.06650019,0.00024131,2]
[366791454,1750457652182,204.0,0.00022924,2]
[366791455,1750457814754,5672.18043783,0.0002,3]
[366791456,1750457847865,-151.0,0.00023139,2]
[366791457,1750457849522,-152.0,0.00023139,2]
[366791458,1750457851194,-173.78853943,0.00023139,2]
[366791460,1750457856238,155.91,0.00013699,2]
[366791461,1750457856446,155.91,0.00022505,2]
[366791462,1750457861562,173.78854,0.00022924,2]
[366791463,1750457863291,151.0,0.00022375,2]
[366791464,1750457932053,215.940533,0.00023052,2]
[366791465,1750457996096,23900.0,0.00023086,2]
[366791466,1750458174143,666.0,0.00022976,2]
[366791467,1750458219256,52197.48529403,0.00023,2]
[366791468,1750458243538,1000.0,0.00022922,2]
[366791469,1750458249987,610.0,0.00022922,2]
[366791470,1750458263538,163.45,0.00022922,2]
[366791471,1750458263960,163.45,0.00022933,2]
[366791472,1750458264161,163.45,0.00022944,2]
[366791473,1750458264355,163.45,0.00022956,2]
[366791474,1750458264573,163.45,0.00022967,2]
[366791475,1750458264783,163.45,0.00022979,2]
[366791476,1750458265010,163.45,0.0002299,2]
[366791477,1750458265210,163.45,0.00023002,2]
[366791478,1750458265407,163.45,0.00023013,2]
[366791479,1750458265676,163.45,0.00023025,2]
[366791480,1750458265845,163.45,0.00023036,2]
[366791481,1750458311210,362.39,0.00022901,2]
[366791482,1750458315797,801.17,0.00022908,2]
[366791483,1750458330106,289.53999998,0.000199,2]
[366791485,1750458371955,204.0,0.00022469,2]
[366791486,1750458491635,602.36684,0.0002309,2]
[366791487,1750458492289,-301.69,0.0002311,2]
[366791488,1750458502032,-173.78853943,0.0002311,2]
[366791495,1750458516174,-126.88831057,0.0002311,2]
[366791496,1750458525454,476.788539,0.00022994,2]
[366791499,1750458528020,4756.06832335,0.000194,2]
[366791507,1750458577765,-173.31940028,0.00023139,2]
[366791514,1750458626553,-161.12306465,0.00023139,2]
[366791515,1750458629346,-240.45482535,0.00023139,2]
[366791522,1750458632098,-10892.30218573,0.00023136,2]
[366791523,1750458632110,-2839.85367162,0.00023136,2]
[366791524,1750458632123,-488.99841752,0.00023136,2]
[366791525,1750458632135,-13758.15485589,0.00023136,2]
[366791526,1750458632161,-4592.48334505,0.00023136,2]
[366791527,1750458632177,-10374.69462233,0.00023136,2]
[366791528,1750458632189,-549.3,0.00023136,2]
[366791529,1750458632201,-51151.37473236,0.00023136,2]
[366791530,1750458632211,-300.0,0.00023152,2]
[366791531,1750458632221,-300.0,0.00023152,2]
[366791532,1750458632230,-1200.0,0.00023152,2]
[366791533,1750458632240,-300.0,0.00023152,2]
[366791534,1750458632250,-96319.666352,0.00023153,2]
[366791535,1750458632259,-200.0,0.00023168,2]
[366791536,1750458632269,-151.0,0.00023168,2]
[366791537,1750458632278,-250.0,0.00023188,2]
[366791538,1750458632288,-168.0,0.00023217,2]
[366791539,1750458632297,-4372.08,0.00023246,2]
[366791540,1750458632307,-165.35,0.00023256,2]
[366791542,1750458632316,-1657.84,0.00023354,2]
[366791543,1750458632326,-168.0,0.00023364,2]
[366791544,1750458632335,-200.0,0.00023426,7]
[366791545,1750458632346,-168.0,0.0002356,2]
[366791546,1750458632356,-300.0,0.0002357,2]
[366791547,1750458632366,-300.0,0.00023571,2]
[366791548,1750458632375,-300.0,0.000237,8]
[366791549,1750458632385,-168.0,0.00023715,2]
[366791550,1750458632395,-156.587,0.00023716,2]
[366791551,1750458632405,-1013.17,0.00023735,2]
[366791552,1750458632414,-801.17,0.00023767,2]
[366791553,1750458632424,-300.0,0.00023784,2]
[366791554,1750458632433,-700.0,0.000238,8]
[366791555,1750458632443,-192.12497409,0.000238,2]
[366791556,1750458632452,-151.0,0.00023817,2]
[366791557,1750458632462,-151.0,0.00023817,2]
[366791558,1750458632472,-151.0,0.00023817,2]
[366791559,1750458632482,-188.0,0.00023817,2]
[366791560,1750458632491,-5503.77,0.00023831,2]
[366791561,1750458632501,-197.5,0.00023836,2]
[366791562,1750458632511,-1000.0,0.000239,8]
[366791563,1750458632521,-168.0,0.00023934,2]
[366791564,1750458632531,-868.48676193,0.00023958,2]
[366791565,1750458632540,-5000.00715417,0.00024,5]
[366791566,1750458632550,-168.0,0.00024013,2]
[366791567,1750458632559,-222.79805325,0.00024031,2]
[366791568,1750458632568,-278.40882238,0.00024031,2]
[366791569,1750458632577,-240.68582573,0.00024031,2]
[366791570,1750458632586,-194.63646907,0.00024031,2]
[366791571,1750458632596,-204.0,0.00024101,4]
[366791572,1750458632605,-6619.0,0.0002411,2]
[366791573,1750458632615,-177.36,0.00024121,2]
[366791574,1750458632624,-177.36,0.00024121,2]
[366791575,1750458632634,-177.36,0.00024121,2]
[366791576,1750458632643,-177.36,0.00024121,2]
[366791577,1750458632653,-150.48,0.00024121,2]
[366791578,1750458632663,-150.48,0.00024121,2]
[366791579,1750458632672,-150.48,0.00024121,2]
[366791580,1750458632682,-150.48,0.00024121,2]
[366791581,1750458632692,-150.48,0.00024121,2]
[366791582,1750458632701,-150.48,0.00024121,2]
[366791583,1750458632711,-150.48,0.00024121,2]
[366791584,1750458632721,-150.48,0.00024121,2]
[366791585,1750458632730,-150.48,0.00024121,2]
[366791586,1750458632740,-434.86,0.00024121,2]
[366791587,1750458632750,-150.48,0.00024121,2]
[366791588,1750458632759,-434.86,0.00024121,2]
[366791589,1750458632769,-150.48,0.00024121,2]
[366791590,1750458632778,-150.48,0.00024121,2]
[366791591,1750458632788,-150.48,0.00024121,2]
[366791592,1750458632797,-150.48,0.00024121,2]
[366791593,1750458632806,-150.48,0.00024121,2]
[366791594,1750458632816,-170.6698709,0.00024121,2]
[366791596,1750458632826,-150.48,0.00024121,2]
[366791598,1750458632835,-150.48,0.00024121,2]
[366791599,1750458632846,-150.48,0.00024121,2]
[366791601,1750458632855,-150.48,0.00024121,2]
[366791603,1750458632865,-189.09,0.00024121,3]
[366791605,1750458632875,-619.49240641,0.0002413,2]
[366791606,1750458632884,-234.23075221,0.0002413,2]
[366791608,1750458632894,-199.53685942,0.0002413,2]
[366791611,1750458632904,-500.0,0.0002413,2]
[366791613,1750458632913,-500.0,0.0002413,2]
[366791615,1750458632923,-500.0,0.0002413,2]
[366791616,1750458632933,-297.88597835,0.0002413,2]
[366791617,1750458632943,-353.16891668,0.0002413,2]
[366791618,1750458632952,-500.0,0.0002413,2]
[366791620,1750458632962,-466.65692583,0.0002413,2]
[366791622,1750458632972,-393.47657323,0.0002413,2]
[366791624,1750458632982,-666.0,0.0002413,2]
[366791627,1750458632992,-300.0,0.0002413,2]
[366791629,1750458633002,-226.3,0.0002413,2]
[366791631,1750458633011,-71144.56027207,0.00024131,2]
[366791633,1750458633025,-2275.87269152,0.00024131,2]
[366791635,1750458633037,-2481.36558463,0.00024131,2]
[366791637,1750458633050,-2381.04070713,0.00024131,2]
[366791640,1750458633062,-4614.66753364,0.00024131,2]
[366791827,1750458637812,-1777.44784201,0.00024131,2]
[366791829,1750458637987,-588.73150695,0.00024131,2]
[366791830,1750458638000,-630.31900023,0.00024131,2]
[366791831,1750458638012,-1177.12540222,0.00024131,2]
[366791832,1750458638024,-5876.89144611,0.00024131,2]
[366791833,1750458638063,-522.27499128,0.00024131,2]
[366791834,1750458638075,-1110.07004804,0.00024131,2]
[366791835,1750458638129,-517.17495246,0.00024131,2]
[366791861,1750458639944,-119888.78148732,0.00024131,2]
[366791862,1750458639955,-17441.23289423,0.00024131,5]
[366791863,1750458639965,-158794.88610249,0.00024131,5]
[366791864,1750458639978,-14116.60426,0.00024131,5]
[366791865,1750458639992,-3991.33602761,0.00024131,5]
[366791866,1750458640003,-12890.89681646,0.00024131,5]
[366791867,1750458640125,-1454692.43147593,0.00024131,5]
[366791868,1750458640138,-170.0810702,0.00024131,2]
[366791869,1750458640148,-200.95045103,0.00024131,2]
[366791870,1750458640158,-154.0,0.00024131,2]
[366791871,1750458640169,-154.0,0.00024131,2]
[366791872,1750458640180,-10669.0508432,0.00024131,2]
[366791873,1750458640190,-13292.9486712,0.00024131,2]
[366791874,1750458640200,-9929.8256131,0.00024131,2]
[366791875,1750458640210,-149384.3939999,0.00024131,2]
[366791876,1750458640221,-300.0,0.00024131,2]
[366791877,1750458640231,-575.46347516,0.00024131,2]
[366791878,1750458640241,-154.0,0.00024131,2]
[366791879,1750458640252,-154.60159568,0.00024131,2]
[366791880,1750458640263,-168.0,0.00024148,2]
[366791881,1750458640273,-500.0,0.00024173,2]
[366791882,1750458640283,-502.48405449,0.00024173,2]
[366791883,1750458640292,-500.0,0.00024173,2]
[366791884,1750458640302,-500.0,0.00024173,2]
[366791885,1750458640312,-600.0,0.00024243,4]
[366791886,1750458640321,-162.380719,0.00024264,2]
[366791887,1750458640330,-250.0,0.00024296,2]
[366791888,1750458640341,-5503.73,0.00024357,2]
[366791889,1750458640352,-264.15,0.00024408,2]
[366791891,1750458640361,-150.48,0.00024547,2]
[366791892,1750458640371,-5888.0,0.00024557,2]
[366791893,1750458640381,-194.63646902,0.00024615,2]
[366791895,1750458640391,-801.17,0.00024626,2]
[366791896,1750458640401,-150.48,0.00024647,2]
[366791897,1750458640411,-150.48,0.00024647,2]
[366791898,1750458640420,-150.48,0.00024647,2]
[366791899,1750458640660,-666.0,0.00024656,2]
[366791900,1750458640671,-490.0,0.00024657,2]
[366791901,1750458640681,-490.0,0.00024657,2]
[366791902,1750458640692,-490.0,0.00024657,2]
[366791903,1750458640702,-490.0,0.00024657,2]
[366791904,1750458640711,-490.0,0.00024657,2]
[366791905,1750458640722,-490.0,0.00024657,2]
[366791906,1750458640733,-490.0,0.00024657,2]
[366791907,1750458640743,-490.0,0.00024657,2]
[366791908,1750458640753,-490.0,0.00024657,2]
[366791909,1750458640763,-511.24927954,0.00024657,2]
[366791910,1750458640774,-420.0,0.00024657,2]
[366791911,1750458640784,-490.0,0.00024657,2]
[366791912,1750458640795,-490.0,0.00024657,2]
[366791913,1750458640805,-490.0,0.00024657,2]
[366791914,1750458640816,-490.0,0.00024657,2]
[366791915,1750458640827,-490.0,0.00024657,2]
[366791916,1750458640838,-490.0,0.00024657,2]
[366791917,1750458640848,-350.0,0.00024657,2]
[366791918,1750458640859,-490.0,0.00024657,2]
[366791919,1750458640869,-490.0,0.00024657,2]
[366791920,1750458640879,-490.0,0.00024657,2]
[366791921,1750458640888,-490.0,0.00024657,2]
[366791922,1750458640898,-490.0,0.00024657,2]
[366791923,1750458640908,-490.0,0.00024657,2]
[366791924,1750458640918,-490.0,0.00024657,2]
[366791925,1750458640928,-490.0,0.00024657,2]
[366791926,1750458640937,-7073.699707,0.00024657,2]
[366791927,1750458640947,-490.0,0.00024657,2]
[366791928,1750458640957,-490.0,0.00024657,2]
[366791929,1750458640966,-169.803888,0.00024657,2]
[366791930,1750458640976,-490.0,0.00024657,2]
[366791931,1750458640986,-156.291615,0.00024657,2]
[366791932,1750458640996,-490.0,0.00024657,2]
[366791933,1750458641006,-490.0,0.00024657,2]
[366791934,1750458641015,-1549.001308,0.00024657,2]
[366791935,1750458641025,-490.0,0.00024657,2]
[366791936,1750458641035,-490.0,0.00024657,2]
[366791937,1750458641044,-5556.536319,0.00024657,2]
[366791938,1750458641054,-235.20001975,0.00024657,2]
[366791939,1750458641063,-490.0,0.00024657,2]
[366791940,1750458641073,-490.0,0.00024657,2]
[366791941,1750458641083,-490.0,0.00024657,2]
[366791942,1750458641092,-490.0,0.00024657,2]
[366791943,1750458641103,-490.0,0.00024657,2]
[366791944,1750458641113,-490.0,0.00024657,2]
[366791945,1750458641123,-490.0,0.00024657,2]
[366791946,1750458641133,-490.0,0.00024657,2]
[366791947,1750458641143,-490.0,0.00024657,2]
[366791948,1750458641152,-490.0,0.00024657,2]
[366791949,1750458641162,-490.0,0.00024657,2]
[366791950,1750458641175,-490.0,0.00024657,2]
[366791951,1750458641185,-490.0,0.00024657,2]
[366791952,1750458641194,-490.0,0.00024657,2]
[366791953,1750458641204,-490.0,0.00024657,2]
[366791954,1750458641214,-490.0,0.00024657,2]
[366791955,1750458641224,-490.0,0.00024657,2]
[366791956,1750458641233,-490.0,0.00024657,2]
[366791957,1750458641244,-490.0,0.00024657,2]
[366791958,1750458641255,-490.0,0.00024657,2]
[366791959,1750458641265,-567.81812739,0.00024657,2]
[366791960,1750458641275,-490.0,0.00024657,2]
[366791961,1750458641285,-350.0,0.00024657,2]
[366791962,1750458641294,-490.0,0.00024657,2]
[366791963,1750458641303,-490.0,0.00024657,2]
[366791964,1750458641313,-490.0,0.00024657,2]
[366791965,1750458641322,-431.29629799,0.00024657,2]
[366791966,1750458641332,-490.0,0.00024657,2]
[366791967,1750458641342,-490.0,0.00024657,2]
[366791968,1750458641352,-490.0,0.00024657,2]
[366791969,1750458641361,-490.0,0.00024657,2]
[366791970,1750458641371,-250.0,0.00024657,2]
[366791971,1750458641381,-490.0,0.00024657,2]
[366791972,1750458641390,-350.0,0.00024657,2]
[366791973,1750458641400,-490.0,0.00024657,2]
[366791974,1750458641410,-420.0,0.00024657,2]
[366791975,1750458641420,-490.0,0.00024657,2]
[366791976,1750458641430,-490.0,0.00024657,2]
[366791977,1750458641439,-490.0,0.00024657,2]
[366791978,1750458641449,-490.0,0.00024657,2]
[366791979,1750458641459,-420.0,0.00024657,2]
[366791980,1750458641468,-309.99091988,0.00024657,2]
[366791981,1750458641478,-490.0,0.00024657,2]
[366791982,1750458641487,-490.0,0.00024657,2]
[366791983,1750458641498,-490.0,0.00024657,2]
[366791984,1750458641508,-490.0,0.00024657,2]
[366791985,1750458641518,-490.0,0.00024657,2]
[366791986,1750458641527,-490.0,0.00024657,2]
[366791987,1750458641537,-490.0,0.00024657,2]
[366791988,1750458641547,-490.0,0.00024657,2]
[366791989,1750458641557,-490.0,0.00024657,2]
[366791990,1750458641567,-1000.0,0.00024657,2]
[366791991,1750458641577,-490.0,0.00024657,2]
[366791992,1750458641586,-490.0,0.00024657,2]
[366791993,1750458641596,-350.0,0.00024657,2]
[366791994,1750458641606,-490.0,0.00024657,2]
[366791995,1750458641617,-490.0,0.00024657,2]
[366791996,1750458641627,-490.0,0.00024657,2]
[366791997,1750458641637,-490.0,0.00024657,2]
[366791998,1750458641647,-490.0,0.00024657,2]
[366791999,1750458641657,-490.0,0.00024657,2]
[366792000,1750458641666,-490.0,0.00024657,2]
[366792001,1750458641676,-350.0,0.00024657,2]
[366792002,1750458641686,-490.0,0.00024657,2]
[366792003,1750458641696,-490.0,0.00024657,2]
[366792004,1750458641705,-282.23073458,0.00024657,2]
[366792005,1750458641716,-490.0,0.00024657,2]
[366792006,1750458641726,-490.0,0.00024657,2]
[366792007,1750458641735,-490.0,0.00024657,2]
[366792008,1750458641745,-490.0,0.00024657,2]
[366792009,1750458641755,-490.0,0.00024657,2]
[366792010,1750458641764,-490.0,0.00024657,2]
[366792011,1750458641774,-490.0,0.00024657,2]
[366792012,1750458641786,-490.0,0.00024657,2]
[366792013,1750458641797,-490.0,0.00024657,2]
[366792014,1750458641807,-490.0,0.00024657,2]
[366792015,1750458641816,-490.0,0.00024657,2]
[366792016,1750458641826,-346.16473959,0.00024657,2]
[366792017,1750458641836,-681.5,0.00024657,2]
[366792018,1750458641847,-490.0,0.00024657,2]
[366792019,1750458641857,-490.0,0.00024657,2]
[366792020,1750458641867,-490.0,0.00024657,2]
[366792021,1750458641877,-490.0,0.00024657,2]
[366792022,1750458641887,-490.0,0.00024657,2]
[366792023,1750458641896,-490.0,0.00024657,2]
[366792024,1750458641906,-490.0,0.00024657,2]
[366792025,1750458641916,-490.0,0.00024657,2]
[366792026,1750458641926,-490.0,0.00024657,2]
[366792027,1750458641936,-490.0,0.00024657,2]
[366792028,1750458641945,-490.0,0.00024657,2]
[366792029,1750458641955,-490.0,0.00024657,2]
[366792030,1750458641965,-490.0,0.00024657,2]
[366792031,1750458641975,-350.0,0.00024657,2]
[366792032,1750458641985,-280.0,0.00024657,2]
[366792033,1750458641995,-554.98356975,0.00024657,2]
[366792034,1750458642005,-490.0,0.00024657,2]
[366792035,1750458642016,-490.0,0.00024657,2]
[366792036,1750458642026,-280.0,0.00024657,2]
[366792037,1750458642037,-490.0,0.00024657,2]
[366792038,1750458642047,-490.0,0.00024657,2]
[366792039,1750458642057,-490.0,0.00024657,2]
[366792040,1750458642067,-490.0,0.00024657,2]
[366792041,1750458642076,-490.0,0.00024657,2]
[366792042,1750458642085,-490.0,0.00024657,2]
[366792043,1750458642095,-280.0,0.00024657,2]
[366792044,1750458642104,-490.0,0.00024657,2]
[366792045,1750458642115,-490.0,0.00024657,2]
[366792046,1750458642125,-490.0,0.00024657,2]
[366792047,1750458642136,-280.0,0.00024657,2]
[366792048,1750458642146,-490.0,0.00024657,2]
[366792049,1750458642156,-490.0,0.00024657,2]
[366792050,1750458642168,-490.0,0.00024657,2]
[366792051,1750458642181,-490.0,0.00024657,2]
[366792052,1750458642191,-490.0,0.00024657,2]
[366792053,1750458642201,-202.22891854,0.00024657,2]
[366792054,1750458642213,-490.0,0.00024657,2]
[366792055,1750458642224,-490.0,0.00024657,2]
[366792056,1750458642234,-490.0,0.00024657,2]
[366792057,1750458642244,-490.0,0.00024657,2]
[366792058,1750458642256,-490.0,0.00024657,2]
[366792059,1750458642266,-490.0,0.00024657,2]
[366792060,1750458642276,-490.0,0.00024657,2]
[366792061,1750458642286,-490.0,0.00024657,2]
[366792062,1750458642296,-490.0,0.00024657,2]
[366792063,1750458642306,-490.0,0.00024657,2]
[366792064,1750458642316,-490.0,0.00024657,2]
[366792065,1750458642327,-490.0,0.00024657,2]
[366792066,1750458642338,-490.0,0.00024657,2]
[366792067,1750458642347,-490.0,0.00024657,2]
[366792068,1750458642358,-490.0,0.00024657,2]
[366792069,1750458642368,-490.0,0.00024657,2]
[366792070,1750458642378,-490.0,0.00024657,2]
[366792071,1750458642390,-490.0,0.00024657,2]
[366792072,1750458642400,-490.0,0.00024657,2]
[366792073,1750458642410,-490.0,0.00024657,2]
[366792074,1750458642420,-490.0,0.00024657,2]
[366792075,1750458642430,-490.0,0.00024657,2]
[366792076,1750458642440,-350.0,0.00024657,2]
[366792077,1750458642450,-490.0,0.00024657,2]
[366792078,1750458642460,-490.0,0.00024657,2]
[366792079,1750458642470,-490.0,0.00024657,2]
[366792080,1750458642480,-490.0,0.00024657,2]
[366792081,1750458642490,-490.0,0.00024657,2]
[366792082,1750458642500,-490.0,0.00024657,2]
[366792083,1750458642511,-490.0,0.00024657,2]
[366792084,1750458642520,-490.0,0.00024657,2]
[366792085,1750458642530,-490.0,0.00024657,2]
[366792086,1750458642539,-490.0,0.00024657,2]
[366792087,1750458642549,-490.0,0.00024657,2]
[366792088,1750458642558,-490.0,0.00024657,2]
[366792089,1750458642568,-490.0,0.00024657,2]
[366792090,1750458642578,-490.0,0.00024657,2]
[366792091,1750458642589,-490.0,0.00024657,2]
[366792092,1750458642599,-490.0,0.00024657,2]
[366792093,1750458642609,-490.0,0.00024657,2]
[366792094,1750458642620,-490.0,0.00024657,2]
[366792095,1750458642630,-490.0,0.00024657,2]
[366792096,1750458642641,-490.0,0.00024657,2]
[366792097,1750458642651,-490.0,0.00024657,2]
[366792100,1750458642662,-490.0,0.00024657,2]
[366792103,1750458642672,-490.0,0.00024657,2]
[366792104,1750458642682,-490.0,0.00024657,2]
[366792105,1750458642692,-661.81,0.00024657,2]
[366792106,1750458642701,-490.0,0.00024657,2]
[366792107,1750458642711,-490.0,0.00024657,2]
[366792108,1750458642721,-490.0,0.00024657,2]
[366792109,1750458642731,-490.0,0.00024657,2]
[366792111,1750458642742,-490.0,0.00024657,2]
[366792113,1750458642752,-490.0,0.00024657,2]
[366792114,1750458642762,-490.0,0.00024657,2]
[366792115,1750458642772,-490.0,0.00024657,2]
[366792116,1750458642782,-350.0,0.00024657,2]
[366792117,1750458642791,-490.0,0.00024657,2]
[366792118,1750458642801,-490.0,0.00024657,2]
[366792119,1750458642810,-490.0,0.00024657,2]
[366792120,1750458642820,-490.0,0.00024657,2]
[366792121,1750458642829,-490.0,0.00024657,2]
[366792122,1750458642839,-490.0,0.00024657,2]
[366792123,1750458642849,-490.0,0.00024657,2]
[366792124,1750458642859,-490.0,0.00024657,2]
[366792125,1750458642869,-490.0,0.00024657,2]
[366792126,1750458642878,-490.0,0.00024657,2]
[366792127,1750458642888,-490.0,0.00024657,2]
[366792129,1750458642898,-490.0,0.00024657,2]
[366792130,1750458642908,-490.0,0.00024657,2]
[366792131,1750458642918,-490.0,0.00024657,2]
[366792132,1750458642927,-350.0,0.00024657,2]
[366792133,1750458642937,-490.0,0.00024657,2]
[366792134,1750458642947,-350.0,0.00024657,2]
[366792135,1750458642957,-490.0,0.00024657,2]
[366792136,1750458642967,-490.0,0.00024657,2]
[366792137,1750458642977,-490.0,0.00024657,2]
[366792138,1750458642987,-490.0,0.00024657,2]
[366792139,1750458642997,-490.0,0.00024657,2]
[366792140,1750458643007,-350.0,0.00024657,2]
[366792141,1750458643016,-490.0,0.00024657,2]
[366792142,1750458643026,-490.0,0.00024657,2]
[366792143,1750458643036,-490.0,0.00024657,2]
[366792144,1750458643045,-490.0,0.00024657,2]
[366792145,1750458643055,-490.0,0.00024657,2]
[366792146,1750458643065,-490.0,0.00024657,2]
[366792147,1750458643075,-490.0,0.00024657,2]
[366792148,1750458643085,-490.0,0.00024657,2]
[366792149,1750458643095,-490.0,0.00024657,2]
[366792150,1750458643106,-490.0,0.00024657,2]
[366792151,1750458643116,-280.0,0.00024657,2]
[366792152,1750458643126,-490.0,0.00024657,2]
[366792153,1750458643137,-490.0,0.00024657,2]
[366792154,1750458643147,-490.0,0.00024657,2]
[366792155,1750458643158,-350.0,0.00024657,2]
[366792156,1750458643350,-490.0,0.00024657,2]
[366792157,1750458643362,-490.0,0.00024657,2]
[366792158,1750458643372,-490.0,0.00024657,2]
[366792159,1750458643382,-490.0,0.00024657,2]
[366792160,1750458643391,-490.0,0.00024657,2]
[366792161,1750458643400,-490.0,0.00024657,2]
[366792162,1750458643410,-490.0,0.00024657,2]
[366792163,1750458643420,-603.32,0.00024657,2]
[366792164,1750458643429,-490.0,0.00024657,2]
[366792165,1750458643440,-490.0,0.00024657,2]
[366792166,1750458643450,-490.0,0.00024657,2]
[366792167,1750458643460,-490.0,0.00024657,2]
[366792168,1750458643469,-490.0,0.00024657,2]
[366792169,1750458643479,-490.0,0.00024657,2]
[366792170,1750458643489,-350.0,0.00024657,2]
[366792171,1750458643498,-490.0,0.00024657,2]
[366792172,1750458643508,-490.0,0.00024657,2]
[366792173,1750458643518,-490.0,0.00024657,2]
[366792174,1750458643527,-490.0,0.00024657,2]
[366792175,1750458643538,-490.0,0.00024657,2]
[366792176,1750458643548,-490.0,0.00024657,2]
[366792177,1750458643557,-490.0,0.00024657,2]
[366792178,1750458643567,-490.0,0.00024657,2]